[Event "Live Chess"]
[Site "Chess.com"]
[Date "2023.05.20"]
[Round "-"]
[White "LanceMaster23"]
[Black "AbilifyXL"]
[Result "0-1"]
[WhiteElo "1842"]
[BlackElo "1957"]
[TimeControl "300"]
[EndTime "11:23:24 PDT"]
[Termination "AbilifyXL won on time"]

1. Nf3 {[%clk 0:04:58.4]} 1... d5 {[%clk 0:04:59.6]} 2. d4 {[%clk 0:04:57.5]}
2... c6 {[%clk 0:04:59.5]} 3. Bf4 {[%clk 0:04:57]} 3... Nf6 {[%clk 0:04:59.1]}
4. e3 {[%clk 0:04:56.6]} 4... Bf5 {[%clk 0:04:58.7]} 5. Be2 {[%clk 0:04:56]}
5... e6 {[%clk 0:04:57.6]} 6. c3 {[%clk 0:04:55.5]} 6... Bd6 {[%clk 0:04:56.8]}
7. Bg3 {[%clk 0:04:55.1]} 7... Qc7 {[%clk 0:04:53.5]} 8. Qb3 {[%clk 0:04:54.1]}
8... b6 {[%clk 0:04:50.7]} 9. Nbd2 {[%clk 0:04:52.8]} 9... Nbd7 {[%clk
0:04:49.1]} 10. a4 {[%clk 0:04:47.2]} 10... O-O {[%clk 0:04:47.6]} 11. O-O
{[%clk 0:04:46]} 11... Rac8 {[%clk 0:04:45.5]} 12. Rfe1 {[%clk 0:04:44.8]} 12...
Bxg3 {[%clk 0:04:43.6]} 13. hxg3 {[%clk 0:04:43.6]} 13... c5 {[%clk 0:04:43.5]}
14. a5 {[%clk 0:04:38.8]} 14... h6 {[%clk 0:04:39.4]} 15. axb6 {[%clk 0:04:37]}
15... axb6 {[%clk 0:04:39]} 16. Nf1 {[%clk 0:04:33.8]} 16... c4 {[%clk
0:04:35.5]} 17. Qd1 {[%clk 0:04:29.2]} 17... b5 {[%clk 0:04:34.2]} 18. N3d2
{[%clk 0:04:25.9]} 18... Rb8 {[%clk 0:04:32.2]} 19. Bf3 {[%clk 0:04:25]} 19...
b4 {[%clk 0:04:29.3]} 20. e4 {[%clk 0:04:24]} 20... dxe4 {[%clk 0:04:26.5]} 21.
Nxe4 {[%clk 0:04:23.9]} 21... Nxe4 {[%clk 0:04:25.4]} 22. Bxe4 {[%clk
0:04:22.9]} 22... Bxe4 {[%clk 0:04:23.4]} 23. Rxe4 {[%clk 0:04:22.8]} 23... Nf6
{[%clk 0:04:22]} 24. Re5 {[%clk 0:04:15.8]} 24... Nd5 {[%clk 0:04:20.6]} 25. Ne3
{[%clk 0:04:11.1]} 25... Rfd8 {[%clk 0:04:09.4]} 26. Rc1 {[%clk 0:03:58.2]}
26... bxc3 {[%clk 0:04:01.9]} 27. bxc3 {[%clk 0:03:58.1]} 27... Rb3 {[%clk
0:03:45.2]} 28. Nxd5 {[%clk 0:03:54.1]} 28... Rxd5 {[%clk 0:03:40.1]} 29. Qe2
{[%clk 0:03:47.9]} 29... Rxe5 {[%clk 0:03:37.2]} 30. dxe5 {[%clk 0:03:46.7]}
30... Qc5 {[%clk 0:03:34.5]} 31. Qe4 {[%clk 0:03:14.2]} 31... Rb2 {[%clk
0:03:28.9]} 32. Qa8+ {[%clk 0:02:33.4]} 32... Kh7 {[%clk 0:03:13.6]} 33. Qe4+
{[%clk 0:02:32.6]} 33... g6 {[%clk 0:03:12.1]} 34. Qf4 {[%clk 0:02:31.7]} 34...
Qa7 {[%clk 0:03:03.9]} 35. Re1 {[%clk 0:02:16.4]} 35... Ra2 {[%clk 0:02:57.2]}
36. Re3 {[%clk 0:02:15.4]} 36... Qc7 {[%clk 0:02:46]} 37. Re4 {[%clk 0:02:00.6]}
37... Ra4 {[%clk 0:02:38.5]} 38. Qf6 {[%clk 0:01:58.6]} 38... Ra3 {[%clk
0:02:10.2]} 39. Rd4 {[%clk 0:01:53.8]} 39... Ra8 {[%clk 0:02:06.7]} 40. Rh4
{[%clk 0:01:37.3]} 40... Rc8 {[%clk 0:01:53.3]} 41. Qg5 {[%clk 0:01:29.9]} 41...
h5 {[%clk 0:01:50.8]} 42. g4 {[%clk 0:01:28.8]} 42... Qd8 {[%clk 0:01:49.7]} 43.
Qxd8 {[%clk 0:01:20.4]} 43... Rxd8 {[%clk 0:01:49.6]} 44. gxh5 {[%clk
0:01:19.8]} 44... gxh5 {[%clk 0:01:48.1]} 45. Rxh5+ {[%clk 0:01:03.9]} 45... Kg6
{[%clk 0:01:46.5]} 46. Rh4 {[%clk 0:01:03.3]} 46... Kf5 {[%clk 0:01:42.3]} 47.
Rxc4 {[%clk 0:01:02.1]} 47... Kxe5 {[%clk 0:01:41.6]} 48. f3 {[%clk 0:00:57]}
48... Rd2 {[%clk 0:01:39.5]} 49. Re4+ {[%clk 0:00:54.5]} 49... Kd5 {[%clk
0:01:36.4]} 50. Kh2 {[%clk 0:00:49]} 50... f5 {[%clk 0:01:33.8]} 51. Ra4 {[%clk
0:00:46.6]} 51... Rc2 {[%clk 0:01:28.8]} 52. Ra5+ {[%clk 0:00:42.1]} 52... Kd6
{[%clk 0:01:24.1]} 53. Ra3 {[%clk 0:00:39.6]} 53... f4 {[%clk 0:01:18.3]} 54.
Kh3 {[%clk 0:00:38.4]} 54... e5 {[%clk 0:01:16.4]} 55. Ra6+ {[%clk 0:00:37.2]}
55... Kd5 {[%clk 0:01:15.2]} 56. Ra5+ {[%clk 0:00:34.2]} 56... Ke6 {[%clk
0:01:13]} 57. Rc5 {[%clk 0:00:32.3]} 57... Kf5 {[%clk 0:01:11.4]} 58. g4+ {[%clk
0:00:29.1]} 58... fxg3 {[%clk 0:01:07.9]} 59. Kxg3 {[%clk 0:00:28.4]} 59... Kf6
{[%clk 0:01:05.4]} 60. Rc6+ {[%clk 0:00:25.2]} 60... Kf5 {[%clk 0:01:03.7]} 61.
c4 {[%clk 0:00:23.5]} 61... Rc3 {[%clk 0:01:01.5]} 62. Rc5 {[%clk 0:00:22.5]}
62... Kf6 {[%clk 0:00:58]} 63. Kg4 {[%clk 0:00:22]} 63... Ke6 {[%clk 0:00:54.1]}
64. Rc6+ {[%clk 0:00:19.6]} 64... Kd7 {[%clk 0:00:52.4]} 65. Rc5 {[%clk
0:00:19]} 65... Kd6 {[%clk 0:00:50.7]} 66. Rd5+ {[%clk 0:00:18.5]} 66... Ke6
{[%clk 0:00:49.5]} 67. Rc5 {[%clk 0:00:18]} 67... Rc1 {[%clk 0:00:46.6]} 68. Kg3
{[%clk 0:00:13.2]} 68... Rc2 {[%clk 0:00:40.9]} 69. f4 {[%clk 0:00:11.8]} 69...
exf4+ {[%clk 0:00:37.3]} 70. Kxf4 {[%clk 0:00:11.7]} 70... Rd2 {[%clk
0:00:36.7]} 71. Ke4 {[%clk 0:00:10.7]} 71... Rd1 {[%clk 0:00:33.4]} 72. Re5+
{[%clk 0:00:09.2]} 72... Kf6 {[%clk 0:00:31.8]} 73. Rd5 {[%clk 0:00:09.1]} 73...
Rc1 {[%clk 0:00:29.8]} 74. Kd4 {[%clk 0:00:09]} 74... Ke6 {[%clk 0:00:29]} 75.
Kc5 {[%clk 0:00:08.9]} 75... Ra1 {[%clk 0:00:26]} 76. Kb5 {[%clk 0:00:08.8]}
76... Rb1+ {[%clk 0:00:24.8]} 77. Kc6 {[%clk 0:00:08.7]} 77... Rc1 {[%clk
0:00:23.2]} 78. Rd6+ {[%clk 0:00:07.9]} 78... Ke7 {[%clk 0:00:21.8]} 79. c5
{[%clk 0:00:07.8]} 79... Rc2 {[%clk 0:00:20.4]} 80. Rd7+ {[%clk 0:00:07]} 80...
Ke6 {[%clk 0:00:19]} 81. Rd3 {[%clk 0:00:06.7]} 81... Rc4 {[%clk 0:00:17.4]} 82.
Re3+ {[%clk 0:00:05.8]} 82... Kf7 {[%clk 0:00:16.4]} 83. Kd6 {[%clk 0:00:05.7]}
83... Rd4+ {[%clk 0:00:15.6]} 84. Kc7 {[%clk 0:00:05.3]} 84... Rc4 {[%clk
0:00:14.8]} 85. c6 {[%clk 0:00:05.2]} 85... Rc5 {[%clk 0:00:13.9]} 86. Kd7
{[%clk 0:00:04.6]} 86... Rd5+ {[%clk 0:00:12.3]} 87. Kc8 {[%clk 0:00:03.9]}
87... Rc5 {[%clk 0:00:11.6]} 88. c7 {[%clk 0:00:03.8]} 88... Rc2 {[%clk
0:00:11.2]} 89. Rd3 {[%clk 0:00:02.8]} 89... Ke7 {[%clk 0:00:09.2]} 90. Rd7+
{[%clk 0:00:01.9]} 90... Ke6 {[%clk 0:00:07.9]} 91. Kd8 {[%clk 0:00:01.4]} 91...
Rc1 {[%clk 0:00:04.9]} 92. c8=Q {[%clk 0:00:00.5]} 92... Rxc8+ {[%clk
0:00:04.4]} 0-1

[Event "Live Chess"]
[Site "Chess.com"]
[Date "2023.05.20"]
[Round "-"]
[White "EdenHazard8"]
[Black "mightysmasher"]
[Result "0-1"]
[WhiteElo "2091"]
[BlackElo "2132"]
[TimeControl "300"]
[EndTime "11:23:27 PDT"]
[Termination "mightysmasher won by resignation"]

1. e4 {[%clk 0:04:58.7]} 1... e6 {[%clk 0:04:58.7]} 2. d4 {[%clk 0:04:57.2]}
2... d5 {[%clk 0:04:57.2]} 3. Nd2 {[%clk 0:04:56.9]} 3... dxe4 {[%clk
0:04:54.1]} 4. Nxe4 {[%clk 0:04:56.8]} 4... Nd7 {[%clk 0:04:53.4]} 5. Nf3 {[%clk
0:04:56.1]} 5... Ngf6 {[%clk 0:04:52.6]} 6. Nxf6+ {[%clk 0:04:55.7]} 6... Nxf6
{[%clk 0:04:51.2]} 7. Bd3 {[%clk 0:04:50.2]} 7... c5 {[%clk 0:04:49.8]} 8. c3
{[%clk 0:04:48]} 8... cxd4 {[%clk 0:04:48.4]} 9. cxd4 {[%clk 0:04:45.4]} 9...
Bd6 {[%clk 0:04:47.6]} 10. Ne5 {[%clk 0:04:43.1]} 10... Bd7 {[%clk 0:04:45]} 11.
Nxd7 {[%clk 0:04:41.3]} 11... Qxd7 {[%clk 0:04:43.3]} 12. O-O {[%clk 0:04:40.7]}
12... O-O-O {[%clk 0:04:40.9]} 13. Bg5 {[%clk 0:04:37.1]} 13... Kb8 {[%clk
0:04:38.9]} 14. Rc1 {[%clk 0:04:33.1]} 14... h6 {[%clk 0:04:37.3]} 15. Be3
{[%clk 0:04:31.2]} 15... e5 {[%clk 0:04:32.8]} 16. h3 {[%clk 0:04:18.3]} 16...
exd4 {[%clk 0:04:30.2]} 17. Bxd4 {[%clk 0:04:18.2]} 17... Bh2+ {[%clk
0:04:28.4]} 18. Kxh2 {[%clk 0:04:16]} 18... Qxd4 {[%clk 0:04:27.5]} 19. Rc3
{[%clk 0:04:14.4]} 19... Nd5 {[%clk 0:04:21.1]} 20. Rb3 {[%clk 0:04:11.6]} 20...
Nf4 {[%clk 0:04:05.7]} 21. Qf3 {[%clk 0:04:07.9]} 21... Rd7 {[%clk 0:04:03.9]}
22. Bf5 {[%clk 0:04:04.7]} 22... Rc7 {[%clk 0:03:58.7]} 23. Rc1 {[%clk
0:03:57.8]} 23... Qd6 {[%clk 0:03:42.5]} 24. Rxc7 {[%clk 0:03:54.4]} 24... Qxc7
{[%clk 0:03:41.2]} 25. g3 {[%clk 0:03:51.2]} 25... Ne6 {[%clk 0:03:37.6]} 26.
Bxe6 {[%clk 0:03:49.5]} 26... fxe6 {[%clk 0:03:36.6]} 27. Qe4 {[%clk 0:03:48.6]}
27... Rf8 {[%clk 0:03:33.6]} 28. f4 {[%clk 0:03:41.5]} 28... Rd8 {[%clk
0:03:31.3]} 29. Qg2 {[%clk 0:03:35.9]} 29... Rd5 {[%clk 0:03:25.3]} 30. Re3
{[%clk 0:03:30.7]} 30... Qb6 {[%clk 0:03:23.7]} 31. Re2 {[%clk 0:03:25.7]} 31...
Qd6 {[%clk 0:03:22.8]} 32. Qe4 {[%clk 0:03:22.7]} 32... Rd2 {[%clk 0:03:08.4]}
33. Kg2 {[%clk 0:03:18.5]} 33... Rxe2+ {[%clk 0:03:04.1]} 34. Qxe2 {[%clk
0:03:18.4]} 34... a6 {[%clk 0:03:03.3]} 35. Qe5 {[%clk 0:03:16.2]} 35... Qxe5
{[%clk 0:03:01.8]} 36. fxe5 {[%clk 0:03:16.1]} 36... Kc7 {[%clk 0:03:01.1]} 37.
Kf3 {[%clk 0:03:15.5]} 37... Kc6 {[%clk 0:03:00.3]} 38. Kg4 {[%clk 0:03:15]}
38... g6 {[%clk 0:02:58.7]} 39. Kf4 {[%clk 0:03:13.7]} 39... Kd5 {[%clk
0:02:57.7]} 40. a4 {[%clk 0:03:12.4]} 40... a5 {[%clk 0:02:55.6]} 41. h4 {[%clk
0:03:08.1]} 41... Kd4 {[%clk 0:02:54.6]} 42. h5 {[%clk 0:02:59.8]} 42... g5+
{[%clk 0:02:53]} 43. Kf3 {[%clk 0:02:58.8]} 43... Kxe5 {[%clk 0:02:52.1]} 44.
Ke3 {[%clk 0:02:57.9]} 44... Kd5 {[%clk 0:02:51.3]} 45. Kd3 {[%clk 0:02:56.7]}
45... e5 {[%clk 0:02:50.2]} 46. g4 {[%clk 0:02:55.2]} 46... e4+ {[%clk
0:02:49.5]} 47. Ke3 {[%clk 0:02:55.1]} 47... Ke5 {[%clk 0:02:48.5]} 48. b3
{[%clk 0:02:55]} 48... Kd5 {[%clk 0:02:47.8]} 49. Kd2 {[%clk 0:02:53.7]} 49...
Kd4 {[%clk 0:02:47.1]} 50. Ke2 {[%clk 0:02:53.6]} 50... e3 {[%clk 0:02:46.4]}
0-1

[Event "Live Chess"]
[Site "Chess.com"]
[Date "2023.05.20"]
[Round "-"]
[White "LL220284LL"]
[Black "noobsmoker24"]
[Result "1-0"]
[WhiteElo "2389"]
[BlackElo "1379"]
[TimeControl "300"]
[EndTime "11:23:28 PDT"]
[Termination "LL220284LL won by resignation"]

1. c4 {[%clk 0:04:58.6]} 1... Nf6 {[%clk 0:04:58.2]} 2. g3 {[%clk 0:04:58.1]}
2... g6 {[%clk 0:04:53.7]} 3. Bg2 {[%clk 0:04:57.2]} 3... Bg7 {[%clk 0:04:53.5]}
4. Nc3 {[%clk 0:04:56.4]} 4... O-O {[%clk 0:04:52.5]} 5. Nf3 {[%clk 0:04:53.7]}
5... c6 {[%clk 0:04:51.1]} 6. O-O {[%clk 0:04:53.2]} 6... d5 {[%clk 0:04:46.9]}
7. cxd5 {[%clk 0:04:52.2]} 7... cxd5 {[%clk 0:04:46.5]} 8. e3 {[%clk 0:04:52.1]}
8... Bg4 {[%clk 0:04:43]} 9. h3 {[%clk 0:04:48.6]} 9... Bxf3 {[%clk 0:04:41.8]}
10. Qxf3 {[%clk 0:04:48.5]} 10... e6 {[%clk 0:04:38.5]} 11. b3 {[%clk
0:04:47.8]} 11... Nc6 {[%clk 0:04:37.3]} 12. Bb2 {[%clk 0:04:46.5]} 12... Rc8
{[%clk 0:04:33.7]} 13. Rac1 {[%clk 0:04:45.2]} 13... Nb4 {[%clk 0:04:31.6]} 14.
Qe2 {[%clk 0:04:41.7]} 14... Nc6 {[%clk 0:04:26.1]} 15. Ba3 {[%clk 0:04:38.4]}
15... Re8 {[%clk 0:04:24.5]} 16. Na4 {[%clk 0:04:36.6]} 16... b6 {[%clk
0:04:17.1]} 17. Bb2 {[%clk 0:04:31]} 17... e5 {[%clk 0:04:11]} 18. Qb5 {[%clk
0:04:24.1]} 18... Qd6 {[%clk 0:04:04.2]} 19. Rc2 {[%clk 0:04:15.8]} 19... Nb4
{[%clk 0:04:01]} 20. Rxc8 {[%clk 0:04:13.4]} 20... Rxc8 {[%clk 0:04:00.3]} 21.
Ba3 {[%clk 0:04:09.3]} 21... a5 {[%clk 0:03:56.7]} 22. Bxb4 {[%clk 0:04:02.8]}
22... axb4 {[%clk 0:03:53.4]} 23. Qxb6 {[%clk 0:04:00.4]} 23... Qxb6 {[%clk
0:03:45.4]} 24. Nxb6 {[%clk 0:03:59.4]} 24... Rd8 {[%clk 0:03:44.5]} 25. Rc1
{[%clk 0:03:57.4]} 25... h5 {[%clk 0:03:42.4]} 26. Rc5 {[%clk 0:03:56.1]} 26...
d4 {[%clk 0:03:41.5]} 27. Rxe5 {[%clk 0:03:52.3]} 27... dxe3 {[%clk 0:03:39.7]}
28. dxe3 {[%clk 0:03:50.8]} 28... Nd7 {[%clk 0:03:35.1]} 29. Rd5 {[%clk
0:03:48.2]} 1-0

[Event "Live Chess"]
[Site "Chess.com"]
[Date "2023.05.20"]
[Round "-"]
[White "tpm07"]
[Black "Leonid_Starozhilov"]
[Result "0-1"]
[WhiteElo "1961"]
[BlackElo "2653"]
[TimeControl "300"]
[EndTime "11:23:40 PDT"]
[Termination "Leonid_Starozhilov won by resignation"]

1. d4 {[%clk 0:04:52.9]} 1... Nf6 {[%clk 0:04:56.4]} 2. c4 {[%clk 0:04:51.2]}
2... g6 {[%clk 0:04:55.4]} 3. Nc3 {[%clk 0:04:44.3]} 3... Bg7 {[%clk 0:04:53.9]}
4. e4 {[%clk 0:04:43.6]} 4... O-O {[%clk 0:04:53.5]} 5. Be2 {[%clk 0:04:40.8]}
5... d6 {[%clk 0:04:52.1]} 6. Nf3 {[%clk 0:04:37.7]} 6... Bg4 {[%clk 0:04:50.8]}
7. h3 {[%clk 0:04:35.6]} 7... Bxf3 {[%clk 0:04:49.3]} 8. Bxf3 {[%clk 0:04:35.5]}
8... Nc6 {[%clk 0:04:48.6]} 9. Be3 {[%clk 0:04:32.9]} 9... e5 {[%clk 0:04:46.2]}
10. d5 {[%clk 0:04:29.9]} 10... Nd4 {[%clk 0:04:45.5]} 11. Nb5 {[%clk
0:04:24.8]} 11... Nxf3+ {[%clk 0:04:40.6]} 12. Qxf3 {[%clk 0:04:24.7]} 12... a6
{[%clk 0:04:33.6]} 13. Nc3 {[%clk 0:04:21.6]} 13... Nh5 {[%clk 0:04:30.7]} 14.
O-O {[%clk 0:04:18.1]} 14... Qe8 {[%clk 0:04:25.6]} 15. Qe2 {[%clk 0:04:16.1]}
15... f5 {[%clk 0:04:24]} 16. exf5 {[%clk 0:04:10.9]} 16... gxf5 {[%clk
0:04:22.9]} 17. f4 {[%clk 0:04:04.9]} 17... Ng3 {[%clk 0:04:21.3]} 0-1

[Event "Live Chess"]
[Site "Chess.com"]
[Date "2023.05.20"]
[Round "-"]
[White "smoggyrabbit"]
[Black "Mikhail_Golubev"]
[Result "0-1"]
[WhiteElo "1621"]
[BlackElo "2529"]
[TimeControl "300"]
[EndTime "11:23:42 PDT"]
[Termination "Mikhail_Golubev won on time"]

1. d4 {[%clk 0:04:59.4]} 1... Nf6 {[%clk 0:04:58]} 2. Nf3 {[%clk 0:04:57.8]}
2... d6 {[%clk 0:04:56.7]} 3. e3 {[%clk 0:04:55.6]} 3... Bg4 {[%clk 0:04:53.9]}
4. Nbd2 {[%clk 0:04:53.2]} 4... e6 {[%clk 0:04:48.9]} 5. h3 {[%clk 0:04:39.2]}
5... Bh5 {[%clk 0:04:47.5]} 6. g4 {[%clk 0:04:30.8]} 6... Bg6 {[%clk 0:04:45.2]}
7. Bg2 {[%clk 0:04:21.6]} 7... Ne4 {[%clk 0:04:38.5]} 8. c4 {[%clk 0:03:46.2]}
8... Nd7 {[%clk 0:04:34.8]} 9. Qb3 {[%clk 0:03:28.7]} 9... c5 {[%clk 0:04:18.5]}
10. Qxb7 {[%clk 0:02:51.4]} 10... Rb8 {[%clk 0:04:16.5]} 11. Qxa7 {[%clk
0:02:48.6]} 11... Be7 {[%clk 0:04:07.9]} 12. Qa4 {[%clk 0:02:20.6]} 12... h5
{[%clk 0:04:01.4]} 13. dxc5 {[%clk 0:01:59.2]} 13... Nxc5 {[%clk 0:03:59.5]} 14.
Qa3 {[%clk 0:01:54]} 14... Nd3+ {[%clk 0:03:49.5]} 15. Ke2 {[%clk 0:01:44.1]}
15... d5 {[%clk 0:03:46.5]} 16. Qa4 {[%clk 0:01:25.2]} 16... hxg4 {[%clk
0:03:12.7]} 17. hxg4 {[%clk 0:01:08.4]} 17... Rxh1 {[%clk 0:03:12.6]} 18. Bxh1
{[%clk 0:01:07.7]} 18... Rb4 {[%clk 0:03:10.2]} 19. Qd1 {[%clk 0:00:59.4]} 19...
dxc4 {[%clk 0:03:03.6]} 20. Nd4 {[%clk 0:00:55.7]} 20... N7e5 {[%clk 0:02:50.2]}
21. Nc6 {[%clk 0:00:47.8]} 21... Nxc6 {[%clk 0:02:42.6]} 22. Bxc6+ {[%clk
0:00:47.7]} 22... Kf8 {[%clk 0:02:41.7]} 23. Qh1 {[%clk 0:00:41.6]} 23... Bh4
{[%clk 0:02:25.8]} 24. Qh2 {[%clk 0:00:10.6]} 24... Nxc1+ {[%clk 0:02:16.2]} 25.
Rxc1 {[%clk 0:00:09.2]} 25... Rxb2 {[%clk 0:02:15.6]} 26. Rd1 {[%clk 0:00:03.7]}
26... c3 {[%clk 0:02:15]} 0-1

[Event "Live Chess"]
[Site "Chess.com"]
[Date "2023.05.20"]
[Round "-"]
[White "apl_trainer"]
[Black "alanmike75"]
[Result "1-0"]
[WhiteElo "1622"]
[BlackElo "1509"]
[TimeControl "300"]
[EndTime "11:23:53 PDT"]
[Termination "apl_trainer won on time"]

1. d4 {[%clk 0:04:57.9]} 1... d5 {[%clk 0:04:58.6]} 2. c4 {[%clk 0:04:56.5]}
2... c6 {[%clk 0:04:57.2]} 3. Nf3 {[%clk 0:04:54.8]} 3... Nf6 {[%clk 0:04:55.8]}
4. Nc3 {[%clk 0:04:53.2]} 4... e6 {[%clk 0:04:54.2]} 5. Bg5 {[%clk 0:04:50.9]}
5... Be7 {[%clk 0:04:53.1]} 6. e3 {[%clk 0:04:49.2]} 6... Nbd7 {[%clk
0:04:51.8]} 7. cxd5 {[%clk 0:04:47.2]} 7... Nxd5 {[%clk 0:04:48.8]} 8. Bxe7
{[%clk 0:04:35.6]} 8... Qxe7 {[%clk 0:04:47.6]} 9. e4 {[%clk 0:04:34.1]} 9...
Nxc3 {[%clk 0:04:44.2]} 10. bxc3 {[%clk 0:04:33]} 10... c5 {[%clk 0:04:36.6]}
11. Bd3 {[%clk 0:04:24.9]} 11... O-O {[%clk 0:04:35]} 12. O-O {[%clk 0:04:23.3]}
12... b6 {[%clk 0:04:32.4]} 13. Qe2 {[%clk 0:04:13.9]} 13... Bb7 {[%clk
0:04:30.2]} 14. e5 {[%clk 0:04:09.6]} 14... Rfd8 {[%clk 0:04:21]} 15. h4 {[%clk
0:04:06.5]} 15... Nf8 {[%clk 0:04:17.2]} 16. Rad1 {[%clk 0:04:01.6]} 16... Bxf3
{[%clk 0:04:11.9]} 17. Qxf3 {[%clk 0:04:00.1]} 17... Rac8 {[%clk 0:04:03.5]} 18.
h5 {[%clk 0:03:47.2]} 18... Qg5 {[%clk 0:03:56.8]} 19. Ba6 {[%clk 0:03:30.6]}
19... Rb8 {[%clk 0:03:47.9]} 20. dxc5 {[%clk 0:03:26.4]} 20... bxc5 {[%clk
0:03:45.2]} 21. Qe2 {[%clk 0:03:06.7]} 21... Qf4 {[%clk 0:03:09.4]} 22. g3
{[%clk 0:02:57.5]} 22... Qa4 {[%clk 0:02:57.8]} 23. Rd6 {[%clk 0:02:50.7]} 23...
Rxd6 {[%clk 0:02:43.5]} 24. exd6 {[%clk 0:02:49.4]} 24... Qc6 {[%clk 0:02:42.1]}
25. Rd1 {[%clk 0:02:41.6]} 25... Rd8 {[%clk 0:02:40.5]} 26. Bb5 {[%clk
0:02:35.6]} 26... Qb6 {[%clk 0:02:34.7]} 27. d7 {[%clk 0:02:32.6]} 27... a6
{[%clk 0:01:56.7]} 28. Ba4 {[%clk 0:02:28.4]} 28... Qa5 {[%clk 0:01:49.5]} 29.
Qc4 {[%clk 0:02:17.8]} 29... Qb6 {[%clk 0:01:18.2]} 30. Qh4 {[%clk 0:02:01.9]}
30... Qc7 {[%clk 0:00:55.7]} 31. h6 {[%clk 0:01:53.5]} 31... Ng6 {[%clk
0:00:49.6]} 32. Qg5 {[%clk 0:01:41.1]} 32... gxh6 {[%clk 0:00:30.7]} 33. Qxh6
{[%clk 0:01:36.8]} 33... Qe5 {[%clk 0:00:17.9]} 34. Qe3 {[%clk 0:01:29.2]} 34...
Qxe3 {[%clk 0:00:15.3]} 35. fxe3 {[%clk 0:01:28.1]} 35... Kf8 {[%clk 0:00:14.3]}
36. Rd6 {[%clk 0:01:24.7]} 36... Ke7 {[%clk 0:00:13.4]} 37. Rxa6 {[%clk
0:01:23.3]} 37... Nf8 {[%clk 0:00:12.2]} 38. Rc6 {[%clk 0:01:17.3]} 38... Nxd7
{[%clk 0:00:11.1]} 39. Rc7 {[%clk 0:01:16]} 39... Kd6 {[%clk 0:00:08.9]} 40.
Rxd7+ {[%clk 0:01:09.8]} 40... Rxd7 {[%clk 0:00:07.8]} 41. Bxd7 {[%clk
0:01:08.7]} 41... Kxd7 {[%clk 0:00:06.9]} 42. Kf2 {[%clk 0:01:07.8]} 42... Kc6
{[%clk 0:00:06.8]} 43. Kf3 {[%clk 0:01:04.9]} 43... Kb5 {[%clk 0:00:06.7]} 44.
Ke4 {[%clk 0:01:03.1]} 44... f6 {[%clk 0:00:06.6]} 45. Kd3 {[%clk 0:00:59.3]}
45... c4+ {[%clk 0:00:03.2]} 46. Kd4 {[%clk 0:00:54.7]} 46... h5 {[%clk
0:00:00.5]} 47. e4 {[%clk 0:00:49.2]} 1-0

[Event "Live Chess"]
[Site "Chess.com"]
[Date "2023.05.20"]
[Round "-"]
[White "manthanit"]
[Black "mattihelenius2"]
[Result "1-0"]
[WhiteElo "952"]
[BlackElo "478"]
[TimeControl "300"]
[EndTime "11:23:54 PDT"]
[Termination "manthanit won by resignation"]

1. e4 {[%clk 0:04:58.7]} 1... e5 {[%clk 0:04:59.1]} 2. Nf3 {[%clk 0:04:57.6]}
2... d5 {[%clk 0:04:52.8]} 3. Nxe5 {[%clk 0:04:53.5]} 3... dxe4 {[%clk
0:04:49.8]} 4. Qe2 {[%clk 0:04:53]} 4... Nf6 {[%clk 0:04:44.7]} 5. Nc3 {[%clk
0:04:48.9]} 5... Bg4 {[%clk 0:04:43]} 6. f3 {[%clk 0:04:47.3]} 6... Bd6 {[%clk
0:04:28.5]} 7. Nxg4 {[%clk 0:04:43.6]} 7... Nxg4 {[%clk 0:04:25.3]} 8. fxg4
{[%clk 0:04:40.3]} 8... Nc6 {[%clk 0:04:19.5]} 9. g3 {[%clk 0:04:37.9]} 9... Nd4
{[%clk 0:04:17.5]} 10. Qxe4+ {[%clk 0:04:31.8]} 10... Qe7 {[%clk 0:04:14.5]} 11.
Bd3 {[%clk 0:04:22.2]} 11... Qxe4+ {[%clk 0:04:11]} 12. Bxe4 {[%clk 0:04:21.1]}
12... Nf3+ {[%clk 0:04:08.5]} 13. Bxf3 {[%clk 0:04:18.3]} 13... O-O-O {[%clk
0:04:06.6]} 14. O-O {[%clk 0:04:15.2]} 14... Rhe8 {[%clk 0:04:05.3]} 15. d3
{[%clk 0:04:11.5]} 15... Bc5+ {[%clk 0:04:04.5]} 16. Kg2 {[%clk 0:04:09.6]}
16... g6 {[%clk 0:03:41.5]} 17. Bf4 {[%clk 0:04:07.6]} 17... h6 {[%clk
0:03:34.5]} 18. Rae1 {[%clk 0:04:04.5]} 18... g5 {[%clk 0:03:33.4]} 19. Rxe8
{[%clk 0:03:54.6]} 19... Rxe8 {[%clk 0:03:32.3]} 20. Bd2 {[%clk 0:03:50.5]}
20... f6 {[%clk 0:03:22.5]} 21. a3 {[%clk 0:03:48.8]} 21... Bd6 {[%clk
0:03:17.9]} 22. Ne4 {[%clk 0:03:46.4]} 22... Be5 {[%clk 0:03:14]} 23. Re1 {[%clk
0:03:45.6]} 23... c6 {[%clk 0:03:11.6]} 24. Nxf6 {[%clk 0:03:43.9]} 24... Bxf6
{[%clk 0:03:09.9]} 25. Rxe8+ {[%clk 0:03:42.8]} 25... Kd7 {[%clk 0:03:08.5]} 26.
Re1 {[%clk 0:03:41.3]} 26... Kd6 {[%clk 0:03:07.5]} 27. Bc3 {[%clk 0:03:40.1]}
27... b5 {[%clk 0:03:06.5]} 28. Bxf6 {[%clk 0:03:38.7]} 28... Kc5 {[%clk
0:03:05.4]} 29. Re6 {[%clk 0:03:34.4]} 1-0